bitfinex/quotes_SOLUSD_20240930
["timestamp","ask_amount","ask_price","bid_price","bid_amount"]
[1727711769509,6.4437,155.19,155.12,5.7495]
[1727711769695,1.5876074,155.18,155.12,5.7495]
[1727711770701,1.5876074,155.19,155.12,5.7495]
[1727711771017,6.4433,155.2,155.12,5.7495]
[1727711772413,1.5876074,155.19,155.12,5.7495]
[1727711773701,1.5876074,155.19,155.12,5.2495]
[1727711774916,8.0314074,155.19,155.12,5.2495]
[1727711775121,1.5876074,155.18,155.12,5.2495]
[1727711775309,6.4433,155.2,155.12,5.2495]
[1727711775509,6.4429,155.21,155.12,5.2495]
[1727711776420,8.0309074,155.2,155.12,5.2495]
[1727711777221,6.4429,155.21,155.12,5.2495]
[1727711777705,6.4425,155.22,155.12,5.2495]
[1727711778018,1.5876074,155.21,155.12,5.2495]
[1727711778426,8.0305074,155.21,155.12,5.2495]
[1727711778606,1.5876074,155.21,155.12,5.2495]
[1727711779704,6.4443,155.18,155.12,5.2495]
[1727711779907,1.5876074,155.17,155.12,5.2495]
[1727711780619,6.445,155.16,155.12,5.2495]
[1727711780956,6.4459,155.14,155.09,16.3262]
[1727711781120,1.5876074,155.13,155.09,16.3262]
[1727711782124,1.5876074,155.14,155.09,16.3262]
[1727711782418,8.0334074,155.14,155.08,6.6341]
[1727711782625,6.4462,155.13,155.08,6.6341]
[1727711782822,8.0342074,155.12,155.07,1.1068109]
[1727711783013,16.1117,155.17,155.07,1.1068109]
[1727711783014,1.5876074,155.11,155.07,1.1068109]
[1727711783910,6.4458,155.14,155.07,1.1068109]
[1727711784528,6.4467,155.12,155.07,1.1068109]
[1727711784724,1.5876074,155.11,155.07,1.1068109]
[1727711785621,8.0346074,155.11,155.07,1.1068109]
[1727711785822,1.5876074,155.1,155.07,1.1068109]
[1727711786218,8.0350074,155.1,155.07,1.1068109]
[1727711786415,1.5876074,155.09,155.07,1.1068109]
[1727711787218,6.4474,155.1,155.07,1.1068109]
[1727711787626,1.5876074,155.09,155.07,1.1068109]
[1727711789925,31.6854,155.18,155.11,6.447]
[1727711790111,6.4446,155.17,155.12,6.4466]
[1727711790525,22.0192,155.18,155.08,15.2911]
[1727711790712,22.4481,155.21,155.08,15.2911]
[1727711790713,1.5876074,155.2,155.08,15.2911]
[1727711790915,6.4449,155.16,155.08,15.2911]
[1727711791125,8.0333074,155.15,155.08,15.2911]
[1727711791325,6.4462,155.13,155.08,15.2911]
[1727711791623,1.5876074,155.12,155.07,1.1068109]
[1727711792026,8.0342074,155.12,155.07,1.1068109]
[1727711792427,6.4466,155.12,155.07,1.1068109]
[1727711792735,32.217,155.2,155.07,1.1068109]
[1727711792736,31.4359,155.15,155.07,1.1068109]
[1727711792941,6.4475,155.1,155.07,1.1068109]
[1727711793849,1.5876074,155.09,155.07,1.1068109]
[1727711794837,1.5876074,155.08,155.07,1.1068109]
[1727711795150,6.4479,155.09,155.07,1.1068109]
[1727711795320,6.4475,155.1,155.07,1.1068109]
[1727711795829,1.5876074,155.09,155.07,1.1068109]
[1727711796740,1.5876074,155.08,155.07,1.1068109]
[1727711796943,31.4359,155.15,155.07,1.1068109]
[1727711796944,8.0351074,155.1,155.07,1.1068109]
[1727711797119,1.5876074,155.09,155.07,1.1068109]
[1727711797531,8.0357074,155.09,155.07,1.1068109]
[1727711797742,1.5876074,155.08,155.07,1.1068109]
[1727711798231,6.4481,155.09,155.07,1.1068109]
[1727711798846,6.4482,155.08,155.07,1.1068109]
[1727711800441,6.4479,155.09,155.07,1.1068109]
[1727711800742,1.5876074,155.08,155.07,1.1068109]
[1727711801237,15.3217,155.15,155.07,7.5554109]
[1727711801422,6.447,155.11,155.07,1.1068109]
[1727711802023,6.447,155.11,155.07,7.5554109]
[1727711802637,6.4466,155.12,155.08,6.4482]
[1727711802824,6.4463,155.13,155.08,6.4482]
[1727711804425,8.0342074,155.12,155.08,6.4482]
[1727711805347,1.5876074,155.11,155.08,6.4482]
[1727711805962,1.5876074,155.11,155.07,1.1068109]
[1727711806251,8.0347074,155.11,155.07,1.1068109]
[1727711806550,6.4475,155.1,155.07,1.1068109]
[1727711807449,15.3217,155.15,155.07,1.1068109]
[1727711807635,15.3217,155.15,155.07,7.5552109]
[1727711807827,6.4467,155.12,155.07,1.1068109]
[1727711808032,1.5876074,155.11,155.08,6.4482]
[1727711808429,6.3093,155.17,155.07,0.9339299]
[1727711808649,41.77727627,155.19,155.1,6.4474]
[1727711808650,6.4458,155.14,155.1,6.4474]
[1727711809156,31.3365,155.19,155.08,7.61549607]
[1727711809360,31.3365,155.19,155.08,6.326]
[1727711809947,6.4456,155.15,155.08,6.326]
[1727711810250,8.0335074,155.14,155.08,6.326]
[1727711810460,8.0338074,155.13,155.08,6.326]
[1727711810630,1.5876074,155.12,155.08,6.326]
[1727711811130,6.4471,155.11,155.08,6.326]
[1727711811331,6.4466,155.12,155.08,7.61549943]
[1727711811530,6.4466,155.12,155.08,6.326]
[1727711811753,8.0346074,155.11,155.08,6.326]
[1727711811952,6.447,155.11,155.08,6.326]
[1727711812258,6.4475,155.1,155.08,6.326]
[1727711812553,6.4478,155.09,155.08,6.326]
[1727711813453,6.4475,155.1,155.08,6.326]
[1727711814733,1.5876074,155.09,155.07,0.9339299]
[1727711814941,6.4482,155.08,155.07,0.9339299]
[1727711816745,6.4479,155.09,155.07,0.9339299]
[1727711817455,6.4477,155.1,155.07,0.9339299]
[1727711818487,15.2266,155.19,155.07,2.22355358]
[1727711818667,6.447,155.11,155.07,0.9339299]
[1727711819666,6.4481,155.09,155.07,0.9339299]
[1727711820743,8.0358074,155.08,155.07,0.9339299]
[1727711821959,6.4482,155.08,155.07,0.9339299]
[1727711822143,8.0358074,155.08,155.07,0.9339299]
[1727711823043,6.4482,155.08,155.07,0.9339299]
[1727711823242,6.4491,155.06,155.05,0.2]
[1727711823569,6.4499,155.04,155.03,0.3816776]
[1727711823742,8.0375074,155.04,155.03,0.3816776]
[1727711823941,8.0375074,155.04,154.95,0.8471714]
[1727711823942,6.4531,154.97,154.95,0.8471714]
[1727711824156,6.4529,154.97,154.95,0.8471714]
[1727711824663,16.4274,155.04,154.95,0.8471714]
[1727711824664,8.0408074,154.96,154.95,0.8471714]
[1727711824876,6.4528,154.98,154.95,0.8471714]
[1727711825052,16.13,155.0,154.95,0.8471714]
[1727711825053,6.452,155.0,154.95,0.8471714]
[1727711825359,6.4528,154.98,154.95,0.8471714]
[1727711825538,6.452,154.99,154.95,0.8471714]
[1727711826139,16.4274,155.04,154.95,0.8471714]
[1727711826353,16.4274,155.04,154.95,7.5102714]
[1727711826551,6.4508,155.02,154.97,6.4528]
[1727711826961,6.4504,155.03,154.98,6.4523]
[1727711827355,16.4274,155.04,154.97,6.4527]
[1727711827356,6.4508,155.02,154.97,6.4527]
[1727711827653,22.542,155.07,154.95,7.5102714]
[1727711827962,1.5876074,155.06,154.96,15.2942]
[1727711828150,6.4515,155.01,154.96,21.747]
[1727711828352,8.0393074,155.0,154.96,15.2942]
[1727711828561,1.5876074,154.99,154.96,15.2942]
[1727711828755,6.4512,155.01,154.96,6.4532]
[1727711830072,6.4496,155.05,155.0,6.4514]
[1727711830263,6.4521,154.99,154.95,0.8471714]
[1727711830469,6.4516,155.0,154.95,0.8471714]
[1727711830667,6.4521,154.99,154.95,7.3007714]
[1727711830986,6.4508,155.02,154.98,6.4523]
[1727711831344,6.4508,155.02,154.97,6.4528]
[1727711831952,1.5876074,155.01,154.97,6.4528]
[1727711832371,6.4516,155.0,154.96,6.4532]
[1727711832669,1.5876074,154.99,154.96,6.4532]
[1727711833256,1.5876074,154.99,154.95,0.8471714]
[1727711833651,6.4524,154.98,154.95,0.8471714]
[1727711834662,6.4521,154.99,154.95,0.8471714]
[1727711834863,6.4517,155.0,154.95,0.8471714]
[1727711835549,16.1233,155.06,154.98,6.4524]
[1727711835879,16.1233,155.06,154.95,0.8471714]
[1727711835880,16.2888,155.08,154.95,2.13755306]
[1727711836190,6.4499,155.04,154.99,6.4519]
[1727711836751,1.5876074,155.03,154.99,6.4519]
[1727711837453,1.5876074,155.03,154.98,6.6182]
[1727711837653,16.1221,155.07,154.98,6.6182]
[1727711837876,6.4494,155.06,155.01,6.4511]
[1727711838259,17.8764074,155.08,154.98,6.6182]
[1727711838260,16.2888,155.08,154.98,6.6182]
[1727711838464,6.4496,155.05,155.0,6.4513]
[1727711838664,6.0411,155.11,154.98,6.6182]
[1727711838665,6.0411,155.11,155.04,6.4498]
[1727711838855,31.2914,155.13,154.99,32.2312757]
[1727711839069,6.447,155.11,155.06,6.449]
[1727711839269,6.447,155.11,155.02,1.28977621]
[1727711839457,6.447,155.11,155.06,6.449]
[1727711840163,6.447,155.11,155.05,6.4624]
[1727711840376,6.447,155.11,155.06,6.449]
[1727711840561,1.5876074,155.1,155.06,6.449]
[1727711840761,6.447,155.11,155.07,6.4486]
[1727711840960,8.0351074,155.1,155.06,6.449]
[1727711841275,1.5876074,155.09,155.05,12.9119]
[1727711841583,6.4475,155.1,155.06,6.4489]
[1727711842052,6.4471,155.11,155.07,6.4485]
[1727711842385,6.4467,155.12,155.05,6.4624]
[1727711842563,6.4472,155.11,155.05,6.4624]
[1727711842762,6.4472,155.11,155.06,6.4487]
[1727711842960,6.4472,155.11,155.05,6.4624]
[1727711842961,6.4472,155.11,155.07,6.4486]
[1727711843161,6.4479,155.09,155.05,6.4624]
[1727711843483,16.1139,155.15,155.05,12.9117]
[1727711843667,6.4483,155.08,155.01,6.0659]
[1727711843859,1.5876074,155.07,155.02,6.4507]
[1727711844061,6.4498,155.05,155.01,6.0659]
[1727711844883,8.0376074,155.04,155.01,6.0659]
[1727711845083,6.45,155.04,155.01,6.0659]
[1727711845764,1.5876074,155.03,154.99,15.8666]
[1727711845966,6.4499,155.04,154.99,22.3185]
[1727711846362,6.4499,155.04,155.0,6.4516]
[1727711847380,1.5876074,155.03,155.0,6.4516]
[1727711847683,1.5876074,155.03,154.99,15.8666]
[1727711847684,8.0379074,155.03,154.99,15.8666]
[1727711847864,1.5876074,155.02,154.98,6.452]
[1727711848059,1.5876074,155.02,154.97,6.0326]
[1727711848281,6.4512,155.01,154.97,6.0326]
[1727711849190,6.4508,155.02,154.97,12.4853]
[1727711849385,16.1224,155.07,154.97,6.0326]
[1727711849578,6.4502,155.04,154.99,6.4519]
[1727711849891,8.0379074,155.03,154.98,6.4523]
[1727711850068,1.5876074,155.02,154.98,6.4523]
[1727711850277,6.4515,155.01,154.95,16.6937714]
[1727711850469,6.4508,155.02,154.97,6.4525]
[1727711850671,6.4504,155.03,154.98,6.4522]
[1727711851081,6.4499,155.04,155.0,6.4515]
[1727711851388,6.4499,155.04,154.99,6.4519]
[1727711851883,16.116,155.13,155.0,38.6023757]
[1727711852066,17.7036074,155.13,155.0,38.6023757]
[1727711852266,6.4478,155.09,155.04,6.4495]
[1727711852484,1.5876074,155.08,155.05,6.4492]
[1727711852781,6.4483,155.08,155.03,6.4502]
[1727711852976,8.0363074,155.07,155.02,6.4506]
[1727711853287,8.0367074,155.06,155.02,6.4506]
[1727711853484,6.4491,155.06,155.02,6.4506]
[1727711854787,1.5876074,155.05,155.02,6.4506]
[1727711854969,1.5876074,155.05,155.01,6.4511]
[1727711855169,6.4492,155.06,155.02,6.4507]
[1727711856088,6.4487,155.07,155.03,6.4502]
[1727711857169,1.5876074,155.06,155.03,6.4502]
[1727711857379,1.5876074,155.06,155.0,22.2377]
[1727711857684,6.4495,155.05,155.01,6.4508]
[1727711857999,1.5876074,155.1,155.0,22.2377]
[1727711858000,6.45,155.04,155.0,12.5733]
[1727711858168,6.4508,155.02,154.98,6.4523]
[1727711858365,16.3406,155.08,154.96,12.8421]
[1727711858563,6.4517,155.0,154.95,0.8471714]
[1727711858786,1.5876074,154.99,154.95,7.3007714]
[1727711858970,8.0396074,154.99,154.95,7.3007714]
[1727711859173,1.5876074,154.98,154.95,7.3007714]
[1727711859372,8.0401074,154.98,154.95,0.8471714]
[1727711859573,1.5876074,154.97,154.95,0.8471714]
[1727711859987,8.0405074,154.97,154.95,0.8471714]
[1727711860187,22.5384,155.03,154.95,0.8471714]
[1727711860188,8.0408074,154.96,154.95,0.8471714]
[1727711860385,1.5876074,154.96,154.95,0.8471714]
[1727711860588,16.4046,155.0,154.95,0.8471714]
[1727711860589,6.4528,154.97,154.95,0.8471714]
[1727711861999,6.4515,155.01,154.95,0.8471714]
[1727711862199,6.412,155.03,154.95,0.8471714]
[1727711862367,1.5876074,155.02,154.95,0.8471714]
[1727711863480,1.5876074,155.01,154.95,0.8471714]
[1727711863999,6.412,155.03,154.95,0.8471714]
[1727711864173,6.4532,154.96,154.95,0.8471714]
[1727711864372,5.9532,154.96,154.95,0.8471714]
[1727711866391,6.456,154.9,154.85,6.4577]
[1727711866701,1.5876074,154.89,154.85,6.4577]
[1727711866991,6.4558,154.9,154.85,6.4577]
[1727711867181,6.4554,154.91,154.86,6.4571]
[1727711867579,1.5876074,154.9,154.86,5.4571]
[1727711867784,6.4559,154.9,154.85,6.4577]
[1727711868589,6.4559,154.9,154.86,6.4572]
[1727711869094,6.4554,154.91,154.86,6.4572]
[1727711869293,6.4549,154.92,154.88,6.4564]
[1727711869500,6.0552,154.96,154.88,6.4564]
[1727711869796,6.4545,154.93,154.88,6.4564]
[1727711869978,6.4545,154.93,154.89,6.4561]
[1727711870582,6.4541,154.94,154.9,6.4557]
[1727711870786,6.4532,154.96,154.91,6.455]
[1727711871106,6.4532,154.96,154.8,17.2118471]
[1727711871107,22.8435,154.97,154.88,21.5486]
[1727711871276,6.4529,154.97,154.89,1.29099059]
[1727711871476,22.5782,155.0,154.91,6.4552]
[1727711871477,1.5876074,154.96,154.91,6.4552]
[1727711871897,1.5876074,154.96,154.88,21.5486]
[1727711872595,6.4537,154.95,154.88,21.5486]
[1727711872799,6.4532,154.97,154.89,1.29103362]
[1727711872986,6.4532,154.97,154.92,6.4548]
[1727711873185,1.5876074,154.96,154.88,9.7636271]
[1727711873498,6.4533,154.96,154.88,9.7636271]
[1727711874400,22.5782,155.0,154.88,9.7636271]
[1727711874699,6.4529,154.97,154.88,9.2636271]
[1727711874901,1.5876074,154.96,154.88,9.2636271]
[1727711875284,16.1567,155.01,154.89,17.6556176]
[1727711875500,6.4519,155.0,154.89,17.6556176]
[1727711875909,6.4519,155.0,154.89,16.3646757]
[1727711876288,16.1567,155.01,154.89,16.3646757]
[1727711876612,6.452,154.99,154.89,16.3646757]
[1727711877409,17.7443074,155.01,154.88,9.2636271]
[1727711877610,6.4541,154.94,154.88,9.2636271]
[1727711877910,6.4528,154.97,154.88,9.2636271]
[1727711878112,6.4524,154.98,154.88,9.2636271]
[1727711878312,1.5876074,154.97,154.88,9.2636271]
[1727711878607,1.5876074,154.97,154.88,6.0917]
[1727711878814,6.4532,154.96,154.88,6.0917]
[1727711879216,6.4532,154.96,154.89,1.29102407]
[1727711879586,1.5876074,154.99,154.88,6.0917]
[1727711879787,16.1297,155.0,154.88,6.0917]
[1727711880392,6.4533,154.96,154.88,6.0917]
[1727711880710,1.5876074,154.95,154.88,6.0917]
[1727711881210,8.0413074,154.95,154.88,6.0917]
[1727711881383,8.0418074,154.94,154.88,6.0917]
[1727711881590,1.5876074,154.93,154.88,6.0917]
[1727711882198,6.4537,154.95,154.88,6.0917]
[1727711882402,6.4533,154.96,154.88,6.0917]
[1727711882599,1.5876074,154.95,154.88,6.0917]
[1727711883617,16.1297,155.0,154.88,6.0917]
[1727711883618,6.4532,154.97,154.88,6.0917]
[1727711883911,8.0409074,154.96,154.88,6.0917]
[1727711884510,8.0409074,154.96,154.82,24.18141048]
[1727711884511,16.2435,154.95,154.83,23.0376]
[1727711884810,6.4554,154.91,154.84,1.29140355]
[1727711885314,6.4554,154.91,154.83,23.0376]
[1727711885622,1.5876074,154.9,154.83,23.0376]
[1727711885793,6.4561,154.89,154.83,23.0376]
[1727711885991,6.4558,154.9,154.83,23.0376]
[1727711886205,17.7234074,154.94,154.83,23.0376]
[1727711886416,6.4548,154.93,154.84,16.3646757]
[1727711886621,6.454,154.95,154.86,16.3646757]
[1727711886807,6.454,154.95,154.87,1.29108112]
[1727711887315,16.1325,154.97,154.87,1.29108112]
[1727711887517,6.4541,154.94,154.86,16.3646757]
[1727711887694,6.4541,154.94,154.84,26.23330812]
[1727711888123,6.4538,154.95,154.85,1.29107279]
[1727711888519,6.4533,154.96,154.88,6.3636]
[1727711888817,21.526,154.95,154.82,6.3636]
[1727711889018,16.1373,154.93,154.82,6.3636]
[1727711889400,17.7249074,154.93,154.82,6.3636]
[1727711889797,6.4566,154.88,154.82,6.3636]
[1727711890120,17.7249074,154.93,154.82,6.3636]
[1727711890326,6.4573,154.87,154.82,6.3636]
[1727711890522,1.5876074,154.86,154.82,6.3636]
[1727711890700,32.2715,154.94,154.82,6.3636]
[1727711890701,6.4583,154.84,154.82,6.3636]
[1727711890899,6.4583,154.84,154.8,0.8471714]
[1727711892327,16.4547,154.88,154.8,0.8471714]
[1727711892502,6.4586,154.84,154.8,0.8471714]
[1727711892702,32.5929,154.92,154.8,0.8471714]
[1727711892898,1.5876074,154.91,154.8,0.8471714]
[1727711893123,32.5929,154.92,154.8,0.8471714]
[1727711893398,6.4566,154.88,154.8,0.8471714]
[1727711894003,6.4562,154.89,154.8,0.8471714]
[1727711894216,6.4562,154.89,154.81,1.29143111]
[1727711894727,16.4547,154.92,154.81,1.29143111]
[1727711894929,6.4558,154.9,154.8,0.8471714]
[1727711895109,6.4562,154.89,154.8,0.8471714]
[1727711895303,6.4566,154.88,154.8,0.8471714]
[1727711896129,6.272,154.95,154.75,6.9250076]
[1727711896130,1.5876074,154.87,154.75,6.9250076]
[1727711896331,34.00582584,154.89,154.76,1.29220021]
[1727711896627,9.15868885,154.88,154.75,0.2590329]
[1727711897015,16.1437,154.86,154.75,0.2590329]
[1727711897216,1.5876074,154.85,154.75,0.2590329]
[1727711897534,6.4603,154.79,154.75,0.2590329]
[1727711897724,1.5876074,154.85,154.75,0.2590329]
[1727711897915,6.4602,154.8,154.75,0.2590329]
[1727711898125,6.4604,154.79,154.75,0.2590329]
[1727711898325,1.5876074,154.84,154.75,0.2590329]
[1727711898516,6.4595,154.82,154.75,0.2590329]
[1727711899832,7.57108145,154.86,154.76,1.29202393]
[1727711900025,16.112,154.89,154.77,21.5632]
[1727711900234,6.4569,154.88,154.78,1.29176191]
[1727711901137,24.01287683,154.93,154.78,1.29176191]
[1727711901320,6.4578,154.85,154.77,21.5632]
[1727711901509,8.0459074,154.84,154.77,21.5632]
[1727711901709,8.0463074,154.83,154.77,21.5632]
[1727711901922,8.0468074,154.82,154.77,21.5632]
[1727711902118,6.4592,154.82,154.77,21.5632]
[1727711902339,1.5876074,154.81,154.77,21.5632]
[1727711902648,8.0471074,154.81,154.77,6.319]
[1727711902939,16.1457,154.84,154.75,0.2590329]
[1727711903311,6.4599,154.8,154.75,0.2590329]
[1727711903811,8.0479074,154.79,154.75,0.2590329]
[1727711904009,16.1457,154.84,154.75,0.2590329]
[1727711904010,8.0484074,154.78,154.75,0.2590329]
[1727711904229,6.4608,154.78,154.75,0.2590329]
[1727711905123,1.5876074,154.83,154.75,0.2590329]
[1727711905124,6.4612,154.77,154.75,0.2590329]
[1727711905638,6.4607,154.79,154.75,0.2590329]
[1727711906018,8.0484074,154.78,154.75,0.2590329]
[1727711906335,6.4608,154.78,154.75,0.2590329]
[1727711908033,6.4598,154.81,154.75,0.2590329]
[1727711909131,15.9396,154.86,154.75,0.2590329]
[1727711909343,6.459,154.83,154.75,0.2590329]
[1727711909716,1.5876074,154.82,154.75,0.2590329]
[1727711909917,6.4593,154.82,154.75,0.2590329]
[1727711910720,16.1449,154.85,154.75,0.2590329]
[1727711910926,6.4605,154.79,154.75,0.2590329]
[1727711911121,6.4599,154.8,154.75,0.2590329]
[1727711911418,16.1449,154.85,154.75,0.2590329]
[1727711911930,6.4591,154.82,154.75,0.2590329]
[1727711912342,6.4582,154.85,154.76,1.29192634]
[1727711912530,16.1413,154.89,154.78,6.3843]
[1727711912847,6.4584,154.84,154.78,6.3843]
[1727711913050,16.1413,154.89,154.78,6.3843]
[1727711913051,6.458,154.85,154.78,6.3843]
[1727711913716,6.4574,154.86,154.78,6.3843]
[1727711913922,16.634,154.82,154.75,0.2590329]
[1727711914120,6.4616,154.76,154.75,0.2590329]
[1727711914943,6.4632,154.72,154.6,6.1511]
[1727711915150,6.4632,154.72,154.64,7.52479454]
[1727711915323,6.4632,154.72,154.64,0.8471714]
[1727711915949,6.4629,154.73,154.64,0.8471714]
[1727711916136,6.4629,154.73,154.65,15.972]
[1727711916535,1.5876074,154.77,154.65,15.972]
[1727711916725,1.5876074,154.77,154.69,6.1511]
[1727711916929,1.5876074,154.8,154.69,6.1511]
[1727711917331,6.4632,154.73,154.69,6.1511]
[1727711917548,6.4632,154.73,154.64,0.8471714]
[1727711917549,34.3992074,154.72,154.64,0.8471714]
[1727711917754,6.4645,154.69,154.62,1.02036967]
[1727711917934,6.4645,154.69,154.6,6.6561]
[1727711918251,6.464,154.71,154.61,1.29318122]
[1727711919133,16.6531,154.72,154.61,1.29318122]
[1727711919330,31.3868,154.76,154.6,6.6561]
[1727711919528,6.4633,154.72,154.58,17.88940812]
[1727711919728,6.4633,154.72,154.59,1.29293805]
[1727711919941,6.4627,154.74,154.59,1.29293805]
[1727711920148,6.4629,154.73,154.58,17.88940812]
[1727711920829,6.4629,154.73,154.59,6.66879779]
[1727711921538,1.61605169,154.72,154.59,6.66879779]
[1727711921736,6.4624,154.75,154.61,26.23330812]
[1727711921946,1.6158913,154.74,154.61,26.23330812]
[1727711922442,1.6158913,154.74,154.62,6.5288]
[1727711922829,6.4629,154.73,154.62,6.5288]
[1727711923034,7.54263663,154.78,154.62,6.5288]
[1727711923035,6.4623,154.75,154.62,6.5288]
[1727711923237,1.61597288,154.74,154.62,6.5288]
[1727711923564,6.4629,154.73,154.62,6.5288]
[1727711923753,1.61602881,154.72,154.62,6.5288]
[1727711923941,6.4629,154.73,154.62,6.5288]
[1727711924251,1.61604225,154.72,154.62,6.5288]
[1727711924753,8.07924225,154.72,154.62,6.5288]
[1727711925057,6.4629,154.73,154.62,6.5288]
[1727711925242,1.61601465,154.72,154.62,6.5288]
[1727711925836,6.4639,154.71,154.62,6.5288]
[1727711926159,6.4633,154.72,154.63,1.29304458]
[1727711926333,6.4641,154.7,154.62,6.5288]
[1727711928057,6.4637,154.71,154.63,1.29299927]
[1727711928351,7.54263663,154.78,154.62,6.5288]
[1727711928855,6.4624,154.75,154.62,6.5288]
[1727711929039,8.07874009,154.74,154.62,6.5288]
[1727711929237,1.61594184,154.73,154.62,6.5288]
[1727711930440,8.07874184,154.73,154.62,6.5288]
[1727711930644,1.61599486,154.72,154.62,6.5288]
[1727711930947,1.61599486,154.72,154.63,15.7949]
[1727711931152,6.4624,154.74,154.63,15.7949]
[1727711931454,1.61594524,154.73,154.63,15.7949]
[1727711931655,6.462,154.75,154.63,15.7949]
[1727711931864,1.61579354,154.74,154.63,15.7949]
[1727711932039,6.4634,154.72,154.63,15.7949]
[1727711932238,1.61602815,154.71,154.63,15.7949]
[1727711932455,6.4641,154.7,154.63,15.7949]
[1727711933942,6.4645,154.69,154.63,15.7949]
[1727711934260,6.4642,154.7,154.63,15.7949]
[1727711935257,6.4637,154.71,154.63,15.7949]
[1727711935941,6.4633,154.72,154.63,15.7949]
[1727711936136,1.61614882,154.72,154.63,15.7949]
[1727711936536,8.07954882,154.72,154.63,15.7949]
[1727711936939,6.4634,154.72,154.63,15.7949]
[1727711937964,7.54263663,154.78,154.63,15.7949]
[1727711938165,6.4629,154.73,154.63,15.7949]
[1727711938661,6.4625,154.74,154.63,15.7949]
[1727711939457,8.07906047,154.73,154.63,15.7949]
[1727711939760,6.4631,154.73,154.63,15.7949]
[1727711940359,1.61598499,154.77,154.63,15.7949]
[1727711940556,6.4634,154.72,154.63,15.7949]
[1727711940865,8.07978718,154.71,154.63,15.7949]
[1727711941048,6.4638,154.71,154.63,15.7949]
[1727711941248,1.61616931,154.7,154.63,15.7949]
[1727711941661,6.4638,154.71,154.63,15.7949]
[1727711942064,6.4642,154.7,154.63,15.7949]
[1727711942640,6.4649,154.68,154.63,15.7949]
[1727711943667,6.4654,154.67,154.63,15.7949]
[1727711943844,8.08226861,154.66,154.6,6.67484261]
[1727711944048,8.08226861,154.66,154.56,6.0514]
[1727711944254,1.61672545,154.65,154.57,6.67711179]
[1727711944464,8.08292545,154.65,154.57,6.67711179]
[1727711944763,6.4674,154.63,154.57,6.67711179]
[1727711945063,8.08461384,154.62,154.57,6.67711179]
[1727711945263,17.78027976,154.68,154.57,6.67711179]
[1727711945467,6.4679,154.61,154.57,6.67711179]
[1727711945767,15.2823,154.66,154.56,6.0514]
[1727711945955,15.2823,154.66,154.5,26.23330812]
[1727711945956,6.4684,154.6,154.51,28.63452079]
[1727711946148,1.61729409,154.59,154.51,28.63452079]
[1727711946354,6.4679,154.61,154.51,28.63452079]
[1727711946864,1.61728152,154.6,154.51,28.63452079]
[1727711947169,8.08558152,154.6,154.51,28.13452079]
[1727711947374,1.6173802,154.59,154.51,28.13452079]
[1727711947664,16.1672,154.64,154.51,28.13452079]
[1727711947869,16.1703,154.61,154.48,0.8471714]
[1727711948082,14.44787588,154.61,154.48,0.8471714]
[1727711948249,6.4695,154.57,154.48,0.8471714]
[1727711948572,6.4691,154.58,154.48,0.8471714]
[1727711948775,6.4687,154.59,154.48,0.8471714]
[1727711950051,6.4687,154.59,154.49,16.3272]
[1727711950484,18.46753198,154.61,154.49,16.3272]
[1727711950660,18.46753198,154.61,154.5,6.405]
[1727711950860,6.467,154.63,154.5,6.405]
[1727711951066,6.4665,154.65,154.52,26.23330812]
[1727711951384,1.61712166,154.64,154.52,26.23330812]
[1727711952352,1.61702812,154.63,154.52,26.23330812]
[1727711952756,6.4675,154.62,154.52,26.23330812]
[1727711952990,1.61726099,154.61,154.5,6.405]
[1727711953365,6.467,154.64,154.5,6.405]
[1727711953782,23.3883648,154.66,154.52,26.23330812]
[1727711954082,6.4671,154.63,154.52,26.23330812]
[1727711954278,1.61715574,154.62,154.52,26.23330812]
[1727711954672,6.4667,154.64,154.52,26.23330812]
[1727711954984,6.467,154.63,154.52,26.23330812]
[1727711955287,1.61715633,154.62,154.52,26.23330812]
[1727711955790,1.61715698,154.62,154.5,6.405]
[1727711955961,8.08465698,154.62,154.5,6.405]
[1727711956386,1.61715698,154.62,154.5,6.405]
[1727711957061,1.61715698,154.62,154.52,26.23330812]